Cogmind - Beta 14 @@@ ROGUE MODE // 2024.09.14 @ 17:52:35 Player: trisiak Result: Destroyed self with Grenade Launcher Performance ------------- Evolutions (0) 0 Regions Visited (3) 600 Robots Destroyed (40) 200 Value Destroyed (774) 774 Prototype IDs (0) 0 Alien Tech Used (0) 0 Bonus (-33) -33 TOTAL SCORE: 1541 Bonus ------- Follower Combat Kills 107 Friendly Fire -140 Cogmind --------- Core Integrity 0/250 Matter 273/300 Energy 160/160 System Corruption 0% Temperature Cool (0) Movement Treading (160) Location -10/Subcaves Parts ------- > --- POWER (1) -------- Light Nuclear Core > --- PROPULSION (2) --- Light Treads Light Treads > --- UTILITY (2) ------ Small Storage Unit Improved Terrain Scanner > --- WEAPON (2) ------- Beamcaster Grenade Launcher > --- INVENTORY (8) ---- Light Treads Spiked Treads Compact Wheel High-capacity Matter Pod (200) Light Armor Plating Light Cannon Light Cannon Makeshift Hammer Peak State ------------ > --- POWER ------------ Light Nuclear Core > --- PROPULSION ------- Light Treads Light Treads > --- UTILITY ---------- Small Storage Unit Improved Terrain Scanner > --- WEAPON ----------- Beamcaster Makeshift Hammer > --- INVENTORY -------- Light Treads Compact Wheel High-capacity Matter Pod Light Armor Plating Assault Rifle Light Cannon Light Cannon Grenade Launcher [Rating: 18] Favorites ----------- Power Light Nuclear Core Engine Light Ion Engine Power Core Light Nuclear Core Propulsion Light Treads Treads Light Treads Leg Aluminum Leg Wheel Compact Wheel Utility Small Storage Unit Device Structural Scanner Storage Small Storage Unit Hackware Hacking Suite Protection Light Armor Plating Weapon Assault Rifle Energy Gun Beamcaster Ballistic Gun Assault Rifle Ballistic Cannon Light Cannon Launcher Grenade Launcher Impact Weapon Hammer Build | -11 -10 -10 -10 ------- Run | Yrd Mat Min Sub Slots Evolved . | . . . . Power . | . . . . Propulsion . | . . . . Utility . | . . . . Weapon . | . . . . Parts Attached 38 | 1 23 9 5 Power 5 | . 4 1 . Engine 4 | . 4 . . Core 1 | . . 1 . Reactor . | . . . . Propulsion 6 | . 3 3 . Treads 5 | . 3 2 . Leg . | . . . . Wheel 1 | . . 1 . Hover . | . . . . Flight . | . . . . Utility 7 | 1 3 1 2 Device 5 | 1 2 1 1 Storage . | . . . . Processor . | . . . . Hackware 1 | . 1 . . Protection 1 | . . . 1 Artifact . | . . . . Weapon 20 | . 13 4 3 Energy Gun 1 | . . 1 . Energy Cannon . | . . . . Ballistic Gun 8 | . 7 1 . Ballistic Cannon 3 | . 2 1 . Launcher 4 | . 2 1 1 Special Weapon . | . . . . Impact Weapon 4 | . 2 . 2 Slashing Weapon . | . . . . Piercing Weapon . | . . . . Special Melee Weapon . | . . . . Unidentified Prototypes . | . . . . Parts Lost 7 | . 4 3 . Power 2 | . 1 1 . Propulsion 2 | . 1 1 . Utility 1 | . 1 . . Weapon 2 | . 1 1 . Highest Loss Streak 3 | . 3 2 . To Critical Strikes . | . . . . Average Slot Usage (%) 99 | . 99 98 100 Engine 6 | . 14 1 . Core 7 | . . 12 14 Treads 26 | . 27 24 28 Wheel 1 | . . 3 . Device 11 | . 9 14 11 Storage 14 | . 14 14 14 Hackware 1 | . 3 . . Energy Gun 4 | . . 4 14 Ballistic Gun 17 | . 25 15 5 Ballistic Cannon 2 | . . 7 . Impact Weapon 2 | . 1 . 8 Peak Build Rating 18 | 7 9 15 18 Average Rating 10 | 6 7 10 16 On Entrance 8 | 6 7 7 15 Naked Turns . | . . . . Heaviest Build 20 | 12 14 18 20 Greatest Support 40 | 20 40 40 40 Greatest Overweight (x) . | . . . . Average Overweight (x) . | . . . . Largest Inventory Capacity 8 | 8 8 8 8 Average Capacity 8 | 8 8 8 8 Most Carried 8 | 6 8 8 8 Average Carried 7 | 6 7 7 7 Final Capacity 8 | 8 8 8 8 Final Carried 8 | 6 7 8 8 Class Distribution -------------------- 68% | Mutant 31% | Scavenger-Mutant Dominant Class ---------------- Mutant | -10/Materials Mutant | -10/Mines Scavenger-Mutant | -10/Subcaves Resources | -11 -10 -10 -10 ----------- Run | Yrd Mat Min Sub Matter Collected 1370 | 269 756 282 63 Remotely . | . . . . Salvage Created 1185 | 142 834 136 73 Parts 62 | 6 41 12 3 Haulers Intercepted 1 | . 1 . . Recyclers Shooed . | . . . . Parts Field Recycled . | . . . . Retrieved Matter . | . . . . Parts Self-Destructed 4 | . . . 4 Prevented . | . . . . Kills | -11 -10 -10 -10 ------- Run | Yrd Mat Min Sub Combat Hostiles Destroyed 25 | . 19 5 1 Guns 18 | . 16 2 . AOE 7 | . 3 3 1 Classes Destroyed 10 | 2 7 . 1 Worker 1 | . 1 . . Builder 2 | . 2 . . Tunneler 5 | 3 1 1 . Hauler 1 | . 1 . . Recycler 3 | 1 2 . . Operator 1 | . 1 . . Watcher 1 | . 1 . . Swarmer 9 | . 6 3 . Grunt 16 | . 13 2 1 Subdweller 1 | . . . 1 Best Kill Streak 4 | 1 4 3 1 Combat Bots Only 3 | . 3 3 1 Max Kills in Single Turn 2 | 1 2 2 1 Gunslinging 1 | . 1 . . Exploded 2 | . 2 2 1 Melee . | . . . . Uniques/NPCs Destroyed . | . . . . Combat | -11 -10 -10 -10 -------- Run | Yrd Mat Min Sub Hostile Shots Fired 125 | . 96 25 4 Missed 27 | . 21 4 2 Damage Taken 1283 | . 826 275 182 Core 259 | . 149 64 46 Absorbed by Shields . | . . . . Regen/Repaired (Parts) 24 | . 24 . . Core Remaining (%) 100 | 100 . . . Volleys Fired 128 | 15 90 19 4 Largest 2 | 2 2 2 1 Hottest 55 | 40 55 55 30 Shots Fired 236 | 30 168 34 4 Gun 213 | 30 153 30 . Cannon 10 | . 8 2 . Launcher 13 | . 7 2 4 Special . | . . . . Kinetic 223 | 30 161 32 . Thermal . | . . . . Explosive 13 | . 7 2 4 Electromagnetic . | . . . . Robot Hit Streak 12 | 7 12 4 4 Robot Miss Streak 5 | 5 5 3 1 Penetration Max . | . . . . Secondary Targets 4 | . 3 1 . Max Gunslinging Chain 1 | . 1 1 . Shots Hit Robots 151 | 18 110 22 1 Core Hits 57 | 6 39 9 3 Critical Kills . | . . . . Critical Parts Destroyed 4 | . 4 . . Critical Strikes 4 | . 4 . . Destroy 1 | . 1 . . Smash 3 | . 3 . . Melee Attacks 24 | . 16 . 8 Impact 24 | . 16 . 8 Slashing . | . . . . Piercing . | . . . . Sneak Attacks 6 | . 6 . . Combat Hostiles . | . . . . Follow-up Attacks . | . . . . Damage Inflicted 2568 | 190 1857 421 100 Guns 1634 | 190 1193 251 . Cannons 89 | . 54 35 . Explosions 527 | . 292 135 100 Melee 318 | . 318 . . Ramming . | . . . . Kinetic 1723 | 190 1247 286 . Thermal . | . . . . Explosive 527 | . 292 135 100 Electromagnetic . | . . . . Impact 318 | . 318 . . Slashing . | . . . . Piercing . | . . . . Highest Corruption . | . . . . Average Corruption . | . . . . Corruption Purged . | . . . . Corruption Blocked . | . . . . Overload Shots . | . . . . Overflow Damage 205 | . 201 4 . Projectiles . | . . . . Explosions 11 | . 7 4 . Melee 194 | . 194 . . Knockbacks 2 | . 1 1 . Impact 1 | . 1 . . Kinetic 1 | . . 1 . Secondary . | . . . . Self-Inflicted Damage 99 | . . 31 68 Shots 5 | . . 2 3 Rammed . | . . . . Targets Rammed . | . . . . Kicked . | . . . . Crushed . | . . . . Highest Temperature 6 | . 6 2 . Average Temperature 2 | . 2 1 . Received Heat Transfer 441 | . 330 111 . Siege Activations . | . . . . Robots Corrupted 1 | . 1 . . Combat Hostiles . | . . . . Parts Fried 3 | . 3 . . Impact Corruptions 8 | . 8 . . Robots Melted . | . . . . Combat Hostiles . | . . . . Parts Melted . | . . . . Heat Transferred . | . . . . Parts Sabotaged . | . . . . Parts Stolen . | . . . . Parts Stripped . | . . . . Power Chain Reactions . | . . . . Alert | -11 -10 -10 -10 ------- Run | Yrd Mat Min Sub Peak Influence 382 | 20 382 301 . Initial 148 | . 13 148 . Average 187 | 12 218 165 . Maximum Alert Level 1 | . 1 1 . Low Security (%) 51 | 100 34 68 . Level 1 48 | . 65 31 . Level 2 . | . . . . Level 3 . | . . . . Level 4 . | . . . . Level 5 . | . . . . High Security . | . . . . Max Security . | . . . . Squads Dispatched 6 | . 6 . . Investigation 5 | . 5 . . Extermination . | . . . . Reinforcement 1 | . 1 . . Assault . | . . . . Garrison . | . . . . Intercept . | . . . . Searches Triggered . | . . . . Construction Impeded . | . . . . Haulers Reinforced . | . . . . Active Scanning Responses . | . . . . Cargo Convoy Interrupts . | . . . . Stealth | -11 -10 -10 -10 --------- Run | Yrd Mat Min Sub Distress Signals 1 | . 1 . . Communications Jammed . | . . . . Distress Signals . | . . . . Times Spotted 54 | . 38 10 6 Peak Tracking Total 6 | . 4 3 6 Tactical Retreats 4 | . 2 1 1 Traps | -11 -10 -10 -10 ------- Run | Yrd Mat Min Sub Traps Triggered 4 | . 2 . 2 Indirectly . | . . . . Trap Hack Attempts . | . . . . Triggered . | . . . . Disarmed . | . . . . Reprogrammed . | . . . . Reused . | . . . . Traps Extracted . | . . . . Installed . | . . . . Triggered . | . . . . Machines | -11 -10 -10 -10 ---------- Run | Yrd Mat Min Sub Machines Disabled 1 | . . 1 . Max in Single Turn 1 | . . 1 . Machines Repaired . | . . . . Machines Dismantled . | . . . . Machines Sabotaged . | . . . . Overloaded Fab Kills . | . . . . Hacking | -11 -10 -10 -10 --------- Run | Yrd Mat Min Sub Machines Accessed 10 | . 10 . . Terminals 7 | . 7 . . Fabricators . | . . . . Repair Stations 1 | . 1 . . Recycling Units 2 | . 2 . . Scanalyzers . | . . . . Garrison Access . | . . . . Total Hacks 30 | . 30 . . Successful 22 | . 22 . . Failed 8 | . 8 . . Catastrophic . | . . . . Database Lockouts . | . . . . Manual 22 | . 22 . . Terminals 22 | . 22 . . Fabricators . | . . . . Repair Stations 1 | . 1 . . Recycling Units 7 | . 7 . . Scanalyzers . | . . . . Garrison Access . | . . . . Terminal Hacks 5 | . 5 . . Robot Analysis 2 | . 2 . . Transport Status 1 | . 1 . . Hauler Manifests 1 | . 1 . . Zone Layout 1 | . 1 . . Fabricator Hacks . | . . . . Repair Station Hacks . | . . . . Recycling Unit Hacks 3 | . 3 . . Retrieve Matter 1 | . 1 . . Retrieve Components 2 | . 2 . . Scanalyzer . | . . . . Garrison Access Hacks . | . . . . Unauthorized Hacks 14 | . 14 . . Terminals 10 | . 10 . . Botnet 3 | . 3 . . Skim 7 | . 7 . . Fabricators . | . . . . Repair Stations 1 | . 1 . . Patch 1 | . 1 . . Recycling Units 3 | . 3 . . Reject 1 | . 1 . . Tunnel 2 | . 2 . . Scanalyzers . | . . . . Garrison Access . | . . . . Data Cores Recovered 1 | . 1 . . Used 1 | . 1 . . Hacking Detections 6 | . 6 . . Full Trace Events 2 | . 2 . . Feedback Events . | . . . . Feedback Blocked . | . . . . Robot Schematics Acquired . | . . . . Robots Built . | . . . . Authchips . | . . . . Time . | . . . . Total Robot Build Rating . | . . . . Part Schematics Acquired . | . . . . Parts Built . | . . . . Authchips . | . . . . Time . | . . . . Total Part Build Rating . | . . . . Parts Repaired . | . . . . Time . | . . . . Parts Recycled . | . . . . Recycled Matter . | . . . . Retrieved Matter . | . . . . Retrieved Components 15 | . 15 . . Parts Scanalyzed . | . . . . Part Schematics Acquired . | . . . . Parts Damaged . | . . . . Bothacking | -11 -10 -10 -10 ------------ Run | Yrd Mat Min Sub Used RIF Installer . | . . . . Robots Hacked . | . . . . Non-combat . | . . . . Combat . | . . . . Robot Hacks Applied . | . . . . Relay Couplers Released . | . . . . Fabnet Peak Effective % . | . . . . Robots Rewired . | . . . . Allies Hacked . | . . . . Hacks Repelled . | . . . . Allies | -11 -10 -10 -10 -------- Run | Yrd Mat Min Sub Total Allies 5 | . . 5 . Largest Group 5 | . . 5 4 Highest-Rated Group 81 | . . 81 50 Highest-Rated Ally 31 | . . 31 16 Total Orders . | . . . . Ally Attacks 20 | . . 20 . Total Damage 240 | . . 240 . Kills 5 | . . 5 . Allies Corrupted . | . . . . Allies Melted . | . . . . Intel | -11 -10 -10 -10 ------- Run | Yrd Mat Min Sub Robot Analysis Total 2 | . 2 . . Derelict Logs Recovered 2 | . . 1 1 Drone Launches . | . . . . Drone Recoveries . | . . . . Exploration | -11 -10 -10 -10 ------------- Run | Yrd Mat Min Sub Turns Passed 3613 | 117 1556 1266 674 Spaces Moved 1592 | 62 727 579 224 Core . | . . . . Treads 1518 | . 715 579 224 Legs 74 | 62 12 . . Wheels . | . . . . Hover . | . . . . Flight . | . . . . Fastest Speed 120 | 120 120 160 160 Average Speed 158 | 120 159 160 160 Slowest Speed 160 | 120 160 160 160 Overloaded Moves . | . . . . Propulsion Burnouts . | . . . . Robots Hopped . | . . . . Cave-ins Triggered . | . . . . Exploration Rate (%) 55 | 4 95 99 23 Regions Visited 3 Branch Regions 2 Pre-discovered Areas 4 | . 2 1 1 Known Exits Taken 1 | . . 1 . Unknown Exits Taken 2 | 1 1 . . Scrap Searched 1 | . . 1 . Spaces Dug 39 | . 6 10 23 Terrain Destroyed 72 | . 30 10 32 Melee 10 | . 6 . 4 Projectile . | . . . . AOE 62 | . 24 10 28 Terrain Rammed . | . . . . Walls Destroyed . | . . . . Machines Disabled . | . . . . Actions | -11 -10 -10 -10 --------- Run | Yrd Mat Min Sub Total 2419 | 77 933 886 523 Wait 600 | . 56 267 277 Move 1589 | 61 726 578 224 Hop . | . . . . Pick Up 17 | . 10 5 2 Fast Attach 7 | 1 1 5 . Attach 5 | . 4 1 . Detach 2 | . 1 1 . Swap 26 | . 18 3 5 Drop 21 | . 11 7 3 Fire 128 | 15 90 19 4 Melee 24 | . 16 . 8 Ram . | . . . . Kick . | . . . . Crush . | . . . . Escape Stasis . | . . . . Rewire . | . . . . Trap . | . . . . Miscellaneous . | . . . . Route ------- -11/Scrapyard -10/Materials (discovered 5 exits: *Mat x3 / [*Min] / Sub) -10/Mines (discovered 3 exits: *Mat x2 / *Sub) -10/Subcaves (discovered 1 exit: *Rec) History --------- Turn | Location | Event 18 | -11/Scrapyard | Discovered new exit (range 3) 118 | -11/Scrapyard | Entered Materials 317 | -10/Materials | Build established: Mutant 989 | -10/Materials | Core integrity fell below 50% 1018 | -10/Materials | Discovered new exit (range 15) 1029 | -10/Materials | Lost 3 parts (1n1u1w) 1058 | -10/Materials | Discovered new exit (range 15) 1215 | -10/Materials | Discovered new exit (range 3) 1281 | -10/Materials | Identified exit to Materials 1281 | -10/Materials | Identified exit to Subcaves 1377 | -10/Materials | Learned 2 Mines zone layouts 1442 | -10/Materials | Learned Storage stockpile data 1674 | -10/Materials | Entered Mines 1773 | -10/Mines | Core integrity fell below 20% 1895 | -10/Mines | Assisted by bots powering up and referring to "LRC-V3" 2065 | -10/Mines | Joined a pair of Derelicts in attacking an 0b10 outpost 2232 | -10/Mines | Discovered exit to Materials (range 12) 2243 | -10/Mines | Learned location of Storage (-9) 2376 | -10/Mines | Discovered exit to Materials (range 13) 2547 | -10/Mines | Learned Materials emergency access door positions 2771 | -10/Mines | Build established: Scavenger-Mutant 2940 | -10/Mines | Entered Subcaves 2940 | -10/Subcaves | Accompanied by 4 allies 2941 | -10/Subcaves | Identified exit to Recycling 2970 | -10/Subcaves | Learned location of Zion (-7) 2970 | -10/Subcaves | Met a Zionite searching for "candidates" 3308 | -10/Subcaves | Shifting Twisted Machinery released Spk. Treads 3308 | -10/Subcaves | Shifting Twisted Machinery released Mak. Hammer 3341 | -10/Subcaves | Learned Materials terminal intel 3602 | -10/Subcaves | Ambushed by Subdweller buried in earth 3614 | -10/Subcaves | Destroyed self with Grenade Launcher Last Messages --------------- 03372_ Trooper 1b triggered Shrapnel Trap. 03372_ An expanding cloud of shrapnel blasts out in all directions. 03372_ Mercenary 1a destroyed. 03375_ Acquired 27 matter. 03376_ Trooper 1b triggered Piercing Trap. 03376_ Spikes shoot up from the floor. 03376_ Trooper 1b suffers critical hit (Impale). 03376_ Trooper 1b destroyed. Z9-5BY(R) emerges from concealment. 03384_ Acquired 13 matter. 03391_ Triggered Piercing Trap. 03391_ Spikes shoot up from the floor. 03391_ Critical hit (Impale). 03598_ Trooper 1a destroyed. 03600_ Acquired 20 matter. 03603_ Acquired 3 matter. 03603_ DC-OUV(R): "NAT20!" 03604_ DC-OUV(R) destroyed. 03609_ The unstable cave ceiling collapses. 03609_ 47 Matter crushed. Map ----- +----------------------------------------------------+ | ?????????????????????????????????????????????????? | | ?????????????????????????????????????????????????? | | ?????????????????????????????????????????????????? | | ?????????????????????????????????????????????????? | | ?????????????????????????????????????????????????? | | ?????????????????????????????????????????????????? | | ?????????????????????????????????????????????????? | | ?????????????????????????????????????????????????? | | ?????????????????????????????????????????????????? | | ?????????????????????????????????????????????????? | | ?????????????????????????????????????????????????? | | ????????????????????????#????????????????????????? | | ?????????????????????????????????#????##?#???????? | | ???????????????????????????????????#?????#???????? | | ???????????????????????????? ????#???##??????????? | | ??????????????????????????? ??#??#???#??? ???#??? | | ???????????????????"??????"""#???#?#????????? ???? | | ?????????????????????????#""""##?#??#??#??? #?#? | | ?????????????????????????#"""""#??###???#? ###? | | ??????????????????????#?##"""""#??#??#?#? # ## | | ???????????????????????## " """#?###?##???# # | | ????????????????????????#" ########???# | | ?????????????????????#### # ####?# ## | | ?????????????????????# ### # | | ?????????????????????# # #?# ? | | ??????????????????#??# @ ### ### #??? | | ????????????????????# s ##### ## ##?# | | ????????????????????# ## ###??# #### | | ????????????????????# ?# s #????### ## | | ????????????????????## ?# #??#### | | ?????????????????????## #?## #?### | | ??????????????????????##??# &&! #?## | | ??????????????????????????? &#& #??# | | ?????????????????????????### ##?# ## | | ?????????????????#?????????###>###??## ### | | ?????????????????????????????" "??"??# ###? | | ????????????????????????#????? "?????# #??# | | ??????????????????????????"??? ?????# ??# | | ????????????????????????????? ? ??# ## | | ????????????????????#????????? ??# ## | | ????????????????????????????? ?"# ? | | ?????????????????????????????? #??# ### # | | ??????????????????????????????????? ### #??### | | ?????????????????????????????????? ??# ????? | | ??????????????????????????????????? ##?? ?????? | | ????????????????????????????????????????? ?????? | | ?????????????????????????????????????????# ???? | | ?????????????????????????????????????????? ?????? | | ??????????????????????????????????????#??????????? | | ????????????????????????????????????????????#????? | +----------------------------------------------------+ Best States ------------- Heat Dissipation 25 Energy Generation 14 Energy Capacity 160 Matter Stores 300 Matter Capacity 300 Sight Range 16 Terrain Scan Range 16 Terrain Scan Density 10 Armor Coverage 150 Evasion (%) 55 Recoil Reduction 2 Offensive Hacking 10 Item Schematics ----------------- None Robot Schematics ------------------ None Fabricated ------------ Nothing Alien Tech Used ----------------- None Achievements -------------- None Challenges ------------ None Game ------ Seed RagnarokSupercompositeWeb Manual? 0 Play Time 00:27:44 Cumulative 154.5 hours Start 2024.09.14 @ 17:24:43 End 2024.09.14 @ 17:52:35 Sessions 1 Manual Loads 0 Difficulty Rogue Special Mode None Game No. 38 Rogue 32 Adventurer 6 Explorer 0 Win Type - Total 2 Types 2/0/0/0/0/0/0/0/0 Lore% 39 Gallery% 59 Achievement% 49 Wizard Run 0 Options --------- Layout 1 ASCII 0 Keyboard 1 Movement Vi Keybinds 0 Fullscreen 2 Font 32/Tamsyn Map View 77x35 Zoom Use 0% Tactical HUD 1 Map Filters NONE Filters NONE Steam 1 RUN: 25dd13c4-3225-4c1a-9f86-fe9e97f4bd08